Cogmind - Beta 13 @@@ ROGUE MODE // 2024.04.28 @ 00:50:36 Player: Occam Result: Destroyed by 8R-AWN with 8R-AWN's Boregun Performance ------------- Evolutions (0) 0 Regions Visited (3) 600 Robots Destroyed (24) 120 Value Destroyed (410) 410 Prototype IDs (23) 460 Alien Tech Used (0) 0 Bonus (300) 300 TOTAL SCORE: 1890 Bonus ------- Aligned with FarCom 300 Cogmind --------- Core Integrity 0/250 Matter 20/300 Energy 248/250 System Corruption 0% Temperature Cool (0) Movement Treading (160) Location -10/Exiles Parts ------- > --- POWER (1) -------- Ion Engine > --- PROPULSION (2) --- Light Treads Light Treads > --- UTILITY (2) ------ Large Storage Unit Structural Scanner > --- WEAPON (2) ------- Assault Rifle Assault Rifle > --- INVENTORY (15) --- Light Treads Compact Wheel High-capacity Matter Pod (50) Assault Rifle Assault Rifle Grenade Launcher Grenade Launcher Peak State ------------ > --- POWER ------------ Light Ion Engine > --- PROPULSION ------- Light Treads Light Treads > --- UTILITY ---------- Large Storage Unit Structural Scanner > --- WEAPON ----------- Assault Rifle Assault Rifle > --- INVENTORY -------- Ion Engine Light Treads Light Treads Compact Wheel High-capacity Matter Pod Firepult Assault Rifle Assault Rifle Grenade Launcher Grenade Launcher Datajack Deploy-a-Sentry Deploy-a-Sentry Deploy-a-Sentry [Rating: 12] Favorites ----------- Power Light Ion Engine Engine Light Ion Engine Propulsion Light Treads Treads Light Treads Leg Aluminum Leg Utility Structural Scanner Device Structural Scanner Storage Medium Storage Unit Weapon Assault Rifle Energy Gun Small Laser Ballistic Gun Assault Rifle Launcher Grenade Launcher Special Melee Weapon Datajack Build | -11 -10 -10 -10 ------- Run | Yrd Mat Min Exi Slots Evolved . | . . . . Power . | . . . . Propulsion . | . . . . Utility . | . . . . Weapon . | . . . . Parts Attached 20 | 1 14 . 5 Power 3 | . 2 . 1 Engine 3 | . 2 . 1 Core . | . . . . Reactor . | . . . . Propulsion 4 | . 3 . 1 Treads 4 | . 3 . 1 Leg . | . . . . Wheel . | . . . . Hover . | . . . . Flight . | . . . . Utility 5 | 1 3 . 1 Device 3 | 1 2 . . Storage 2 | . 1 . 1 Processor . | . . . . Hackware . | . . . . Protection . | . . . . Artifact . | . . . . Weapon 8 | . 6 . 2 Energy Gun 2 | . 2 . . Energy Cannon . | . . . . Ballistic Gun 3 | . 2 . 1 Ballistic Cannon . | . . . . Launcher 1 | . . . 1 Special Weapon . | . . . . Impact Weapon . | . . . . Slashing Weapon . | . . . . Piercing Weapon . | . . . . Special Melee Weapon 2 | . 2 . . Unidentified Prototypes . | . . . . Parts Lost 3 | . 1 . 2 Power 1 | . . . 1 Propulsion 1 | . . . 1 Utility 1 | . 1 . . Weapon . | . . . . Highest Loss Streak 1 | . 1 . 1 To Critical Strikes 2 | . . . 2 Average Slot Usage (%) 99 | . 100 100 99 Engine 13 | . 14 14 13 Treads 27 | . 27 28 28 Device 14 | . 14 14 14 Storage 14 | . 14 14 14 Energy Gun 3 | . 7 . . Ballistic Gun 24 | . 20 28 27 Naked Turns . | . . . . Heaviest Build 29 | 12 20 18 29 Greatest Support 40 | 20 40 40 40 Greatest Overweight (x) . | . . . . Average Overweight (x) . | . . . . Largest Inventory Capacity 15 | 8 10 10 15 Average Capacity 11 | 8 9 10 13 Most Carried 15 | 6 10 10 15 Average Carried 10 | 6 9 9 11 Final Capacity 15 | 8 10 10 15 Final Carried 10 | 6 10 10 7 Class Distribution -------------------- 100% | Mutant Dominant Class ---------------- Mutant | -10/Materials Mutant | -10/Mines Mutant | -10/Exiles Resources | -11 -10 -10 -10 ----------- Run | Yrd Mat Min Exi Matter Collected 682 | 219 413 . 50 Remotely . | . . . . Salvage Created 799 | 115 684 . . Parts 60 | 7 53 . . Haulers Intercepted 2 | . 2 . . Recyclers Shooed 5 | . 5 . . Parts Field Recycled . | . . . . Retrieved Matter . | . . . . Parts Self-Destructed . | . . . . Prevented . | . . . . Kills | -11 -10 -10 -10 ------- Run | Yrd Mat Min Exi Combat Hostiles Destroyed 10 | . 10 . . Guns 10 | . 10 . . Classes Destroyed 8 | 2 6 . . Builder 3 | . 3 . . Tunneler 3 | 2 1 . . Hauler 2 | . 2 . . Recycler 2 | 1 1 . . Operator 1 | . 1 . . Watcher 3 | . 3 . . Swarmer 3 | . 3 . . Grunt 7 | . 7 . . Best Kill Streak 3 | 2 3 . . Combat Bots Only 3 | . 3 . . Max Kills in Single Turn 1 | 1 1 . . Gunslinging . | . . . . Exploded . | . . . . Melee . | . . . . Uniques/NPCs Destroyed . | . . . . Combat | -11 -10 -10 -10 -------- Run | Yrd Mat Min Exi Hostile Shots Fired 107 | . 47 . 60 Missed 28 | . 12 . 16 Damage Taken 1128 | . 360 . 768 Core 264 | . 80 . 184 Absorbed by Shields . | . . . . Core Remaining (%) 100 | 100 . . . Volleys Fired 109 | 3 65 . 41 Largest 2 | 2 2 . 2 Hottest 60 | 60 60 . 40 Shots Fired 215 | 6 129 . 80 Gun 215 | 6 129 . 80 Cannon . | . . . . Launcher . | . . . . Special . | . . . . Kinetic 174 | 3 91 . 80 Thermal 41 | 3 38 . . Explosive . | . . . . Electromagnetic . | . . . . Robot Hit Streak 22 | 3 22 . 6 Robot Miss Streak 6 | 1 6 . 3 Penetration Max . | . . . . Secondary Targets 2 | . 2 . . Max Gunslinging Chain 1 | . 1 . . Shots Hit Robots 141 | 4 85 . 52 Core Hits 52 | 4 34 . 14 Critical Kills . | . . . . Critical Parts Destroyed . | . . . . Critical Strikes . | . . . . Melee Attacks . | . . . . Impact . | . . . . Slashing . | . . . . Piercing . | . . . . Sneak Attacks . | . . . . Combat Hostiles . | . . . . Follow-up Attacks . | . . . . Damage Inflicted 1726 | 57 1033 . 636 Guns 1726 | 57 1033 . 636 Cannons . | . . . . Explosions . | . . . . Melee . | . . . . Ramming . | . . . . Kinetic 1379 | 24 719 . 636 Thermal 347 | 33 314 . . Explosive . | . . . . Electromagnetic . | . . . . Impact . | . . . . Slashing . | . . . . Piercing . | . . . . Highest Corruption . | . . . . Average Corruption . | . . . . Corruption Purged . | . . . . Corruption Blocked . | . . . . Overload Shots . | . . . . Overflow Damage . | . . . . Projectiles . | . . . . Explosions . | . . . . Melee . | . . . . Knockbacks . | . . . . Impact . | . . . . Kinetic . | . . . . Secondary . | . . . . Self-Inflicted Damage . | . . . . Shots . | . . . . Rammed . | . . . . Targets Rammed . | . . . . Kicked . | . . . . Crushed . | . . . . Highest Temperature 36 | . 36 . . Average Temperature 15 | . 15 . . Received Heat Transfer 129 | . 129 . . Siege Activations . | . . . . Robots Corrupted . | . . . . Combat Hostiles . | . . . . Parts Fried 3 | . 3 . . Impact Corruptions . | . . . . Robots Melted . | . . . . Combat Hostiles . | . . . . Parts Melted . | . . . . Heat Transferred 775 | 75 700 . . Parts Sabotaged . | . . . . Parts Stolen . | . . . . Parts Stripped . | . . . . Power Chain Reactions . | . . . . Alert | -11 -10 -10 -10 ------- Run | Yrd Mat Min Exi Peak Influence 200 | 15 200 9 . Initial 9 | . 9 9 . Average 72 | 10 101 6 . Maximum Alert Level 1 | . 1 . . Low Security (%) 99 | 100 99 100 . Level 1 . | . . . . Level 2 . | . . . . Level 3 . | . . . . Level 4 . | . . . . Level 5 . | . . . . High Security . | . . . . Max Security . | . . . . Squads Dispatched 3 | . 3 . . Investigation 2 | . 2 . . Extermination . | . . . . Reinforcement 1 | . 1 . . Assault . | . . . . Garrison . | . . . . Intercept . | . . . . Searches Triggered . | . . . . Construction Impeded . | . . . . Haulers Reinforced . | . . . . Active Scanning Responses . | . . . . Cargo Convoy Interrupts . | . . . . Stealth | -11 -10 -10 -10 --------- Run | Yrd Mat Min Exi Distress Signals . | . . . . Communications Jammed . | . . . . Distress Signals . | . . . . Times Spotted 17 | . 15 . 2 Peak Tracking Total 9 | . 3 . 9 Tactical Retreats 1 | . 1 . . Traps | -11 -10 -10 -10 ------- Run | Yrd Mat Min Exi Traps Triggered 1 | . 1 . . Indirectly . | . . . . Trap Hack Attempts 7 | . 7 . . Triggered . | . . . . Disarmed 1 | . 1 . . Reprogrammed 1 | . 1 . . Reused 1 | . 1 . . Traps Extracted . | . . . . Installed . | . . . . Triggered 1 | . 1 . . Machines | -11 -10 -10 -10 ---------- Run | Yrd Mat Min Exi Machines Disabled 5 | . 1 . 4 Max in Single Turn 1 | . 1 . 1 Machines Repaired . | . . . . Machines Dismantled . | . . . . Machines Sabotaged . | . . . . Overloaded Fab Kills . | . . . . Hacking | -11 -10 -10 -10 --------- Run | Yrd Mat Min Exi Machines Accessed 13 | . 8 . 5 Terminals 7 | . 7 . . Fabricators . | . . . . Repair Stations . | . . . . Recycling Units 1 | . 1 . . Scanalyzers . | . . . . Garrison Access . | . . . . Total Hacks 50 | . 22 . 28 Successful 39 | . 11 . 28 Failed 11 | . 11 . . Catastrophic 2 | . 2 . . Database Lockouts . | . . . . Manual 20 | . 19 . 1 Terminals 20 | . 20 . . Fabricators . | . . . . Repair Stations . | . . . . Recycling Units 2 | . 2 . . Scanalyzers . | . . . . Garrison Access . | . . . . Terminal Hacks 34 | . 6 . 28 Record 27 | . . . 27 Robot Analysis 5 | . 5 . . Terminal Index 1 | . 1 . . Derelict Proto ID Bank 1 | . . . 1 Fabricator Hacks . | . . . . Repair Station Hacks . | . . . . Recycling Unit Hacks . | . . . . Scanalyzer . | . . . . Garrison Access Hacks . | . . . . Unauthorized Hacks 5 | . 5 . . Terminals 3 | . 3 . . Botnet 2 | . 2 . . Operators 1 | . 1 . . Fabricators . | . . . . Repair Stations . | . . . . Recycling Units 2 | . 2 . . Reject 1 | . 1 . . Recyclers 1 | . 1 . . Scanalyzers . | . . . . Garrison Access . | . . . . Data Cores Recovered . | . . . . Used . | . . . . Hacking Detections 8 | . 8 . . Full Trace Events 3 | . 3 . . Feedback Events . | . . . . Feedback Blocked . | . . . . Robot Schematics Acquired . | . . . . Robots Built . | . . . . Authchips . | . . . . Time . | . . . . Total Robot Build Rating . | . . . . Part Schematics Acquired . | . . . . Parts Built . | . . . . Authchips . | . . . . Time . | . . . . Total Part Build Rating . | . . . . Parts Repaired . | . . . . Time . | . . . . Parts Recycled . | . . . . Recycled Matter . | . . . . Retrieved Matter . | . . . . Retrieved Components . | . . . . Parts Scanalyzed . | . . . . Part Schematics Acquired . | . . . . Parts Damaged . | . . . . Bothacking | -11 -10 -10 -10 ------------ Run | Yrd Mat Min Exi Used RIF Installer . | . . . . Robots Hacked . | . . . . Non-combat . | . . . . Combat . | . . . . Robot Hacks Applied . | . . . . Relay Couplers Released . | . . . . Fabnet Peak Effective % . | . . . . Robots Rewired . | . . . . Allies Hacked . | . . . . Hacks Repelled . | . . . . Allies | -11 -10 -10 -10 -------- Run | Yrd Mat Min Exi Total Allies 3 | . . 3 . Largest Group 3 | . . 3 3 Highest-Rated Group 40 | . . 40 40 Highest-Rated Ally 16 | . . 16 16 Total Orders 3 | . . . 3 STAY 3 | . . . 3 Ally Attacks 22 | . . . 22 Total Damage 717 | . . . 717 Kills 1 | . . . 1 Allies Corrupted . | . . . . Allies Melted . | . . . . Turrets Deployed 3 | . . . 3 Intel | -11 -10 -10 -10 ------- Run | Yrd Mat Min Exi Robot Analysis Total 5 | . 5 . . Derelict Logs Recovered 1 | . . 1 . Drone Launches . | . . . . Drone Recoveries . | . . . . Exploration | -11 -10 -10 -10 ------------- Run | Yrd Mat Min Exi Turns Passed 3221 | 59 1341 518 1303 Spaces Moved 1699 | 11 679 319 690 Core . | . . . . Treads 1659 | . 650 319 690 Legs 40 | 11 29 . . Wheels . | . . . . Hover . | . . . . Flight . | . . . . Fastest Speed 120 | 120 120 160 160 Average Speed 159 | 120 158 160 160 Slowest Speed 160 | 120 160 160 160 Overloaded Moves . | . . . . Propulsion Burnouts . | . . . . Robots Hopped . | . . . . Cave-ins Triggered . | . . . . Exploration Rate (%) 59 | 3 96 68 72 Regions Visited 3 Branch Regions 2 Pre-discovered Areas 2 | . . 1 1 Known Exits Taken . | . . . . Unknown Exits Taken 3 | 1 1 1 . Scrap Searched 2 | . . 2 . Spaces Dug . | . . . . Terrain Destroyed . | . . . . Melee . | . . . . Projectile . | . . . . AOE . | . . . . Terrain Rammed . | . . . . Walls Destroyed . | . . . . Machines Disabled . | . . . . Actions | -11 -10 -10 -10 --------- Run | Yrd Mat Min Exi Total 2014 | 50 822 327 815 Wait 137 | 36 31 7 63 Move 1696 | 10 678 318 690 Hop . | . . . . Pick Up 19 | . 11 1 7 Fast Attach 3 | 1 2 . . Attach 5 | . 3 . 2 Detach 3 | . 3 . . Swap 12 | . 9 . 3 Drop 23 | . 13 1 9 Fire 109 | 3 65 . 41 Melee . | . . . . Ram . | . . . . Kick . | . . . . Crush . | . . . . Escape Stasis . | . . . . Rewire . | . . . . Trap 7 | . 7 . . Miscellaneous . | . . . . Route ------- -11/Scrapyard -10/Materials (discovered 5 exits: [*Mat x3] / [*Min] / Sub) -10/Mines (discovered 3 exits: [*Mat] / *Exi / Sub) -10/Exiles (discovered 1 exit: [*Min]) History --------- Turn | Location | Event 7 | -11/Scrapyard | Discovered new exit (range 3) 60 | -11/Scrapyard | Entered Materials 332 | -10/Materials | Build established: Mutant 352 | -10/Materials | Discovered new exit (range 16) 361 | -10/Materials | Discovered new exit (range 10) 617 | -10/Materials | Discovered new exit (range 11) 874 | -10/Materials | Discovered new exit (range 8) 1164 | -10/Materials | Discovered new exit (range 3) 1401 | -10/Materials | Entered Mines 1464 | -10/Mines | Assisted by bots powering up and referring to "LRC-V3" 1487 | -10/Mines | Learned location of Storage (-9) 1606 | -10/Mines | Discovered new exit (range 8) 1622 | -10/Mines | Assembled infested the area 1625 | -10/Mines | Identified exit to Subcaves 1904 | -10/Mines | Deemed a non-threat by the Exiles lab entrance 1904 | -10/Mines | Discovered new exit (range 6) 1919 | -10/Mines | Entered Exiles 1919 | -10/Exiles | Accompanied by 3 allies 1959 | -10/Exiles | Met 8R-AWN 1985 | -10/Exiles | Met EX-HEX 2047 | -10/Exiles | Met EX-DEC 2153 | -10/Exiles | Learned location of Zion (-7) 2316 | -10/Exiles | Met EX-BIN 2447 | -10/Exiles | Aligned with FarCom system 2449 | -10/Exiles | Given EX-Vault access code 2486 | -10/Exiles | Opened EX-Vault 2497 | -10/Exiles | Found Firepult 2501 | -10/Exiles | Found Deploy-a-Sentry 2504 | -10/Exiles | Found Deploy-a-Sentry 2506 | -10/Exiles | Found Deploy-a-Sentry 2541 | -10/Exiles | Warned to stay clear of 0b10 Research branches 2681 | -10/Exiles | Discovered new exit (range 10) 2997 | -10/Exiles | Attacked by the Exiles 3030 | -10/Exiles | DAS Turret deployed 3032 | -10/Exiles | DAS Turret deployed 3034 | -10/Exiles | DAS Turret deployed 3131 | -10/Exiles | Lost 4 allies 3133 | -10/Exiles | Core integrity fell below 50% 3187 | -10/Exiles | Core integrity fell below 20% 3222 | -10/Exiles | Destroyed by 8R-AWN with 8R-AWN's Boregun Last Messages --------------- 03195_ Penetrated by HV Slug. 03195_ HV Slug penetrates Earth. 03195_ Penetrated by HV Slug. 03199_ HV Slug penetrates Earth. 03204_ HV Slug penetrates Wall. 03204_ Penetrated by HV Slug. 03204_ HV Slug penetrates Earth. 03210_ Penetrated by HV Slug. 03210_ HV Slug penetrates Earth. 03210_ Penetrated by HV Slug. 03210_ HV Slug penetrates Earth. 03211_ Earth collapses. 03214_ HV Slug penetrates Wall. 03214_ HV Slug penetrates Earth. 03214_ Penetrated by HV Slug. 03214_ HV Slug penetrates Earth. 03218_ Penetrated by HV Slug. 03218_ HV Slug penetrates Earth. 03222_ HV Slug penetrates Wall. 03222_ Penetrated by HV Slug. Map ----- +----------------------------------------------------+ | ??????????#######????????????????????????????????? | | ?????????#########???????????????????????????????? | | ?????????### ###???????????????????????????????? | | ?????????## ##???????????????????????????????? | | ?????????## < ####?????????????????????????????? | | ?????????## ####?????????????????????????????? | | ?????????## ##?????????????????????????????? | | ?????????## ###?????????????????????????????? | | ?????????### ] ###?????????????????????????????? | | ??????????## / ###??????????#########??????????? | | ??????????### ########????#########??????????? | | ??????????### #########???##!!! ##??????????? | | ???????????## #""###???## ##??????????? | | ???????????### ###?### ##?????????## | | ???????????####" ####### "##?????????## | | ????????????##"" #####" "##????????## | | ????????????##### ##" ""##????????##" | | ????????????###### # %####????????##" | | ???????????????###"## ###?????????##" | | ????????????????######## %###?????????##" | | ????????????????########## % % % ####???????## | | ????????????????######### = % #####??????##" | | ??????????????? # !! % %! ;######?### | | ??????????????? ##! =%[ [=!g;;;"" ########### | | ??????????????###;! * t % ####" """#####X | | ?????????????### ;! t@ #####" * | | ????????????### ; ! #;#####"# | | ????????????## #;;#;;;;;####?##### * | | ???????????# ###### ####???####### | | ???????????????### #####??????###### | | ???????????????## ###???????????##### | | ?????????????## # ###??????????????#### | | ????????????### #####????????????????####" | | ????????????## #####??????????????????###""" | | ????????????## ##???????????????????????###" | | ????????????#####???????????????????????##"" | | ????????????????????????????????????????##""" | | ???????????????????????????????????????##""" | | ???????????????????????????????????????##""" | | ???????????????????????????????????????##"" | | ???????????????????????????????????????##""" | | ???????????????????????????????????????##"" | | ???????????????????????????????????????###"" | | ???????????????????????????????????????###"""" | | ????????????????????????????????????????### | | ?????????????????????????????????????????##" | | ?????????????????????????????????????????##"""" | | ?????????????????????????????????????????##"" | | ?????????????????????????????????????????##" | | ?????????????????????????????????????????##""" | +----------------------------------------------------+ Best States ------------- Heat Dissipation 35 Energy Generation 10 Energy Capacity 250 Matter Stores 300 Matter Capacity 300 Sight Range 16 Terrain Scan Density 10 Evasion (%) 55 Recoil Reduction 2 Item Schematics ----------------- None Robot Schematics ------------------ None Fabricated ------------ Nothing Alien Tech Used ----------------- None Achievements -------------- None Challenges ------------ None Game ------ Seed CobblerNavigationDetector Manual? 0 Play Time 00:26:28 Cumulative 257.7 hours Start 2024.04.28 @ 00:17:50 End 2024.04.28 @ 00:50:36 Sessions 1 Manual Loads 0 Difficulty Rogue Special Mode None Game No. 165 Rogue 21 Adventurer 144 Explorer 0 Win Type - Total 4 Types 2/0/1/1/0/0/0/0/0 Lore% 63 Gallery% 74 Achievement% 62 Wizard Run 0 Options --------- Layout 0 ASCII 0 Keyboard 0 Movement Mouse Keybinds 0 Fullscreen 2 Font 20/SmallcapsGlow Map View 66x50 Zoom Use 0% Tactical HUD 1 Map Filters NONE Filters NONE Steam X RUN: 92e73bfc-7e54-4af3-aa9b-2967f2b13e30